Cogmind - Beta 13 @@@ ROGUE MODE // 2024.06.14 @ 13:09:34 Player: Quiggsy Result: Destroyed by G-47 Trooper with Particle Gun Performance ------------- Evolutions (2) 1000 Regions Visited (4) 800 Robots Destroyed (37) 185 Value Destroyed (1128) 1128 Prototype IDs (0) 0 Alien Tech Used (0) 0 Bonus (17) 17 TOTAL SCORE: 3130 Bonus ------- High Alert Combat Kills 17 Cogmind --------- Core Integrity 0/550 Matter 280/300 Energy 336/350 System Corruption 0% Temperature Cool (10) Movement Walking (120) Location -8/Materials Parts ------- > --- POWER (2) -------- (None) > --- PROPULSION (3) --- Carbon-fiber Leg > --- UTILITY (4) ------ High-capacity Battery Trap Scanner Hacking Suite > --- WEAPON (2) ------- EM Shotgun Great Maul > --- INVENTORY (5) ---- Improved Sensor Array Beam Rifle Peak State ------------ > --- POWER ------------ Light Ion Engine Improved Ion Engine > --- PROPULSION ------- Improved Aluminum Leg Improved Aluminum Leg > --- UTILITY ---------- Cryofiber Web Improved Sensor Array Advanced Targeting Computer Hacking Suite > --- WEAPON ----------- Beam Rifle Beam Rifle > --- INVENTORY -------- High-capacity Battery Trap Scanner Medium Armor Plating Beam Rifle EM Pulse Cannon [Rating: 24] Favorites ----------- Power Improved Ion Engine Engine Improved Ion Engine Propulsion Improved Aluminum Leg Treads Light Treads Leg Improved Aluminum Leg Flight Unit Flight Unit Utility Improved Targeting Computer Device Cooling System Storage Small Storage Unit Processor Improved Targeting Computer Hackware Hacking Suite Protection Medium Armor Plating Weapon Beam Rifle Energy Gun Beam Rifle Energy Cannon EM Pulse Cannon Ballistic Gun Light Assault Rifle Ballistic Cannon Light Cannon Impact Weapon Hammer Build | -11 -10 -10 -9 -8 ------- Run | Yrd Mat Min Mat Mat Slots Evolved 4 | . . . 2 2 Power 1 | . . . 1 . Propulsion 1 | . . . 1 . Utility 2 | . . . . 2 Weapon . | . . . . . Parts Attached 50 | 5 6 . 18 21 Power 11 | 1 2 . 5 3 Engine 11 | 1 2 . 5 3 Core . | . . . . . Reactor . | . . . . . Propulsion 14 | 2 2 . 4 6 Treads 3 | . . . . 3 Leg 7 | 2 . . 2 3 Wheel . | . . . . . Hover . | . . . . . Flight 4 | . 2 . 2 . Utility 11 | 1 1 . 3 6 Device 4 | . . . 2 2 Storage 2 | 1 . . . 1 Processor 3 | . 1 . 1 1 Hackware 1 | . . . . 1 Protection 1 | . . . . 1 Artifact . | . . . . . Weapon 14 | 1 1 . 6 6 Energy Gun 8 | . . . 5 3 Energy Cannon 1 | . . . . 1 Ballistic Gun 2 | 1 1 . . . Ballistic Cannon 1 | . . . 1 . Launcher . | . . . . . Special Weapon . | . . . . . Impact Weapon 2 | . . . . 2 Slashing Weapon . | . . . . . Piercing Weapon . | . . . . . Special Melee Weapon . | . . . . . Unidentified Prototypes . | . . . . . Parts Lost 24 | . 5 1 1 17 Power 7 | . 2 . . 5 Propulsion 9 | . 1 1 1 6 Utility 3 | . . . . 3 Weapon 5 | . 2 . . 3 Highest Loss Streak 8 | . 4 1 1 8 To Critical Strikes . | . . . . . Average Slot Usage (%) 80 | . 88 57 86 72 Engine 15 | . 14 14 19 8 Leg 16 | . 26 . 17 11 Flight 4 | . 1 28 6 . Device 9 | . . . 10 14 Storage 3 | . 13 . . 3 Processor 10 | . 11 14 11 8 Hackware 2 | . . . . 9 Energy Gun 13 | . . . 19 12 Ballistic Gun 3 | . 20 . . . Naked Turns . | . . . . . Heaviest Build 22 | 9 10 3 22 22 Greatest Support 60 | 20 20 8 26 60 Greatest Overweight (x) 5 | . . . . 5 Average Overweight (x) . | . . . . . Largest Inventory Capacity 8 | 8 8 5 5 5 Average Capacity 5 | 6 7 5 5 5 Most Carried 7 | 1 7 5 5 5 Average Carried 3 | . 2 5 4 4 Final Capacity 8 | 8 5 5 5 5 Final Carried 5 | 1 5 5 5 2 Class Distribution -------------------- 56% | Scavenger-Mutant 43% | Mutant Dominant Class ---------------- Mutant | -10/Materials Mutant | -10/Mines Scavenger-Mutant | -9/Materials Scavenger-Mutant | -8/Materials Resources | -11 -10 -10 -9 -8 ----------- Run | Yrd Mat Min Mat Mat Matter Collected 706 | 234 69 . 218 185 Remotely . | . . . . . Salvage Created 1456 | . 99 . 521 836 Parts 71 | . 10 . 35 26 Haulers Intercepted . | . . . . . Recyclers Shooed 1 | . . . . 1 Parts Field Recycled . | . . . . . Retrieved Matter . | . . . . . Parts Self-Destructed . | . . . . . Prevented . | . . . . . Kills | -11 -10 -10 -9 -8 ------- Run | Yrd Mat Min Mat Mat Combat Hostiles Destroyed 32 | . 6 . 12 14 Guns 26 | . 6 . 11 9 Cannons 2 | . . . 1 1 AOE 1 | . . . . 1 Classes Destroyed 10 | . 1 . 5 4 Worker 2 | . . . 1 1 Recycler 1 | . . . . 1 Operator 1 | . . . 1 . Watcher 1 | . . . 1 . Swarmer 9 | . 6 . 3 . Grunt 14 | . . . 6 8 Brawler 1 | . . . . 1 Duelist 1 | . . . . 1 Sentry 6 | . . . 3 3 Hunter 1 | . . . . 1 Best Kill Streak 3 | . 3 . 3 3 Combat Bots Only 3 | . 3 . 3 2 Max Kills in Single Turn 2 | . 1 . 1 2 Gunslinging . | . . . . . Exploded 1 | . . . . 1 Melee . | . . . . . Uniques/NPCs Destroyed . | . . . . . Combat | -11 -10 -10 -9 -8 -------- Run | Yrd Mat Min Mat Mat Hostile Shots Fired 363 | . 108 9 55 191 Missed 121 | . 33 7 21 60 Damage Taken 3110 | . 612 26 411 2061 Core 760 | . 137 9 50 564 Absorbed by Shields . | . . . . . Core Remaining (%) 76 | 100 . 41 87 . Volleys Fired 140 | . 23 . 65 52 Largest 2 | . 2 . 2 2 Hottest 119 | . 40 . 112 119 Shots Fired 243 | . 33 . 108 102 Gun 230 | . 33 . 101 96 Cannon 13 | . . . 7 6 Launcher . | . . . . . Special . | . . . . . Kinetic 40 | . 33 . 7 . Thermal 195 | . . . 101 94 Explosive . | . . . . . Electromagnetic 8 | . . . . 8 Robot Hit Streak 19 | . 3 . 11 19 Robot Miss Streak 4 | . 4 . 3 4 Penetration Max . | . . . . . Secondary Targets 2 | . 2 . . . Max Gunslinging Chain 1 | . 1 . . . Shots Hit Robots 164 | . 15 . 68 81 Core Hits 61 | . 8 . 23 30 Critical Kills . | . . . . . Critical Parts Destroyed 2 | . . . . 2 Critical Strikes 12 | . . . 6 6 Burn 10 | . . . 6 4 Smash 2 | . . . . 2 Melee Attacks 12 | . . . . 12 Impact 12 | . . . . 12 Slashing . | . . . . . Piercing . | . . . . . Sneak Attacks . | . . . . . Combat Hostiles . | . . . . . Follow-up Attacks . | . . . . . Damage Inflicted 2523 | . 123 . 949 1451 Guns 2028 | . 123 . 872 1033 Cannons 185 | . . . 77 108 Explosions 66 | . . . . 66 Melee 244 | . . . . 244 Ramming . | . . . . . Kinetic 200 | . 123 . 77 . Thermal 1937 | . . . 872 1065 Explosive . | . . . . . Electromagnetic 142 | . . . . 142 Impact 244 | . . . . 244 Slashing . | . . . . . Piercing . | . . . . . Highest Corruption . | . . . . . Average Corruption . | . . . . . Corruption Purged . | . . . . . Corruption Blocked . | . . . . . Overload Shots . | . . . . . Overflow Damage 59 | . . . 1 58 Projectiles 2 | . . . 1 1 Explosions . | . . . . . Melee 57 | . . . . 57 Knockbacks 3 | . . . 2 1 Impact 1 | . . . . 1 Kinetic 2 | . . . 2 . Secondary . | . . . . . Self-Inflicted Damage . | . . . . . Shots . | . . . . . Rammed . | . . . . . Targets Rammed . | . . . . . Kicked . | . . . . . Crushed . | . . . . . Highest Temperature 383 | . . 1 30 383 Average Temperature 115 | . . 1 9 128 Received Heat Transfer 1289 | . . 29 153 1107 Effects 1 | . . . . 1 Interference 1 | . . . . 1 Siege Activations . | . . . . . Robots Corrupted . | . . . . . Combat Hostiles . | . . . . . Parts Fried 2 | . . . . 2 Impact Corruptions 3 | . . . . 3 Robots Melted 1 | . . . . 1 Combat Hostiles 1 | . . . . 1 Parts Melted 9 | . . . 3 6 Heat Transferred 5544 | . . . 2645 2899 Parts Sabotaged . | . . . . . Parts Stolen . | . . . . . Parts Stripped . | . . . . . Power Chain Reactions 1 | . . . . 1 Alert | -11 -10 -10 -9 -8 ------- Run | Yrd Mat Min Mat Mat Peak Influence 456 | . 190 88 429 456 Initial 122 | . . 58 29 122 Average 217 | . 84 79 250 276 Maximum Alert Level 2 | . . . 2 2 Low Security (%) 37 | 100 100 100 20 16 Level 1 55 | . . . 70 74 Level 2 7 | . . . 9 9 Level 3 . | . . . . . Level 4 . | . . . . . Level 5 . | . . . . . High Security . | . . . . . Max Security . | . . . . . Squads Dispatched 7 | . 2 . 4 1 Investigation 2 | . 1 . 1 . Extermination . | . . . . . Reinforcement 5 | . 1 . 3 1 Assault . | . . . . . Garrison . | . . . . . Intercept . | . . . . . Searches Triggered . | . . . . . Construction Impeded . | . . . . . Haulers Reinforced . | . . . . . Active Scanning Responses . | . . . . . Cargo Convoy Interrupts . | . . . . . Stealth | -11 -10 -10 -9 -8 --------- Run | Yrd Mat Min Mat Mat Distress Signals 2 | . 1 . 1 . Communications Jammed . | . . . . . Distress Signals . | . . . . . Times Spotted 62 | . 12 7 23 20 Peak Tracking Total 14 | . 6 14 5 6 Tactical Retreats 1 | . . 1 . . Traps | -11 -10 -10 -9 -8 ------- Run | Yrd Mat Min Mat Mat Traps Triggered 2 | . 1 . 1 . Indirectly . | . . . . . Trap Hack Attempts . | . . . . . Triggered . | . . . . . Disarmed . | . . . . . Reprogrammed . | . . . . . Reused . | . . . . . Traps Extracted . | . . . . . Installed . | . . . . . Triggered . | . . . . . Machines | -11 -10 -10 -9 -8 ---------- Run | Yrd Mat Min Mat Mat Machines Disabled 1 | . . . . 1 Max in Single Turn 1 | . . . . 1 Machines Repaired . | . . . . . Machines Dismantled . | . . . . . Machines Sabotaged . | . . . . . Overloaded Fab Kills . | . . . . . Hacking | -11 -10 -10 -9 -8 --------- Run | Yrd Mat Min Mat Mat Machines Accessed . | . . . . . Terminals . | . . . . . Fabricators . | . . . . . Repair Stations . | . . . . . Recycling Units . | . . . . . Scanalyzers . | . . . . . Garrison Access . | . . . . . Total Hacks . | . . . . . Successful . | . . . . . Failed . | . . . . . Catastrophic . | . . . . . Database Lockouts . | . . . . . Manual . | . . . . . Terminals . | . . . . . Fabricators . | . . . . . Repair Stations . | . . . . . Recycling Units . | . . . . . Scanalyzers . | . . . . . Garrison Access . | . . . . . Terminal Hacks . | . . . . . Fabricator Hacks . | . . . . . Repair Station Hacks . | . . . . . Recycling Unit Hacks . | . . . . . Scanalyzer . | . . . . . Garrison Access Hacks . | . . . . . Unauthorized Hacks . | . . . . . Terminals . | . . . . . Fabricators . | . . . . . Repair Stations . | . . . . . Recycling Units . | . . . . . Scanalyzers . | . . . . . Garrison Access . | . . . . . Data Cores Recovered . | . . . . . Used . | . . . . . Hacking Detections . | . . . . . Full Trace Events . | . . . . . Feedback Events . | . . . . . Feedback Blocked . | . . . . . Robot Schematics Acquired . | . . . . . Robots Built . | . . . . . Authchips . | . . . . . Time . | . . . . . Total Robot Build Rating . | . . . . . Part Schematics Acquired . | . . . . . Parts Built . | . . . . . Authchips . | . . . . . Time . | . . . . . Total Part Build Rating . | . . . . . Parts Repaired . | . . . . . Time . | . . . . . Parts Recycled . | . . . . . Recycled Matter . | . . . . . Retrieved Matter . | . . . . . Retrieved Components . | . . . . . Parts Scanalyzed . | . . . . . Part Schematics Acquired . | . . . . . Parts Damaged . | . . . . . Bothacking | -11 -10 -10 -9 -8 ------------ Run | Yrd Mat Min Mat Mat Used RIF Installer . | . . . . . Robots Hacked . | . . . . . Non-combat . | . . . . . Combat . | . . . . . Robot Hacks Applied . | . . . . . Relay Couplers Released . | . . . . . Fabnet Peak Effective % . | . . . . . Robots Rewired . | . . . . . Allies Hacked . | . . . . . Hacks Repelled . | . . . . . Allies | -11 -10 -10 -9 -8 -------- Run | Yrd Mat Min Mat Mat Total Allies . | . . . . . Largest Group . | . . . . . Highest-Rated Group . | . . . . . Highest-Rated Ally . | . . . . . Total Orders . | . . . . . Ally Attacks . | . . . . . Total Damage . | . . . . . Kills . | . . . . . Allies Corrupted . | . . . . . Allies Melted . | . . . . . Intel | -11 -10 -10 -9 -8 ------- Run | Yrd Mat Min Mat Mat Robot Analysis Total . | . . . . . Derelict Logs Recovered 1 | . . 1 . . Drone Launches . | . . . . . Drone Recoveries . | . . . . . Exploration | -11 -10 -10 -9 -8 ------------- Run | Yrd Mat Min Mat Mat Turns Passed 1642 | 60 241 72 779 490 Spaces Moved 1216 | 47 160 189 610 210 Core 18 | 6 . . . 12 Treads 26 | . . . . 26 Legs 764 | 41 142 . 409 172 Wheels . | . . . . . Hover . | . . . . . Flight 408 | . 18 189 201 . Fastest Speed 34 | 50 37 37 34 120 Average Speed 92 | 111 110 37 91 129 Slowest Speed 300 | 120 120 40 120 300 Overloaded Moves . | . . . . . Propulsion Burnouts . | . . . . . Robots Hopped 2 | . . . 2 . Cave-ins Triggered . | . . . . . Exploration Rate (%) 33 | 4 37 55 55 18 Regions Visited 4 Branch Regions 1 Pre-discovered Areas . | . . . . . Known Exits Taken 1 | . . . 1 . Unknown Exits Taken 3 | 1 1 1 . . Scrap Searched 1 | . . 1 . . Spaces Dug . | . . . . . Terrain Destroyed 3 | . . . . 3 Melee . | . . . . . Projectile . | . . . . . AOE 3 | . . . . 3 Terrain Rammed . | . . . . . Walls Destroyed . | . . . . . Machines Disabled . | . . . . . Actions | -11 -10 -10 -9 -8 --------- Run | Yrd Mat Min Mat Mat Total 1463 | 52 196 190 724 301 Wait 1 | . . . 1 . Move 1208 | 46 159 188 605 210 Hop 2 | . . . 2 . Pick Up 25 | 1 6 1 16 1 Fast Attach 25 | 5 2 . 5 13 Attach 17 | . 4 . 8 5 Detach 4 | . 2 . . 2 Swap 8 | . . . 5 3 Drop 21 | . . 1 17 3 Fire 140 | . 23 . 65 52 Melee 12 | . . . . 12 Ram . | . . . . . Kick . | . . . . . Crush . | . . . . . Escape Stasis . | . . . . . Rewire . | . . . . . Trap . | . . . . . Miscellaneous . | . . . . . Route ------- -11/Scrapyard -10/Materials -10/Mines -9/Materials (discovered 4 exits: *Mat x3 / [*Min]) -8/Materials (discovered 1 exit: [*Sto]) History --------- Turn | Location | Event 4 | -11/Scrapyard | Discovered new exit (range 16) 61 | -11/Scrapyard | Entered Materials 223 | -10/Materials | Discovered new exit (range 11) 297 | -10/Materials | Core integrity fell below 50% 302 | -10/Materials | Entered Mines 316 | -10/Mines | Build established: Mutant 318 | -10/Mines | Assembled infested the area 323 | -10/Mines | Assisted by a Guerilla fighting off Assembled 327 | -10/Mines | Learned location of 1 exit from Materials 328 | -10/Mines | Lost 4 parts (1p1n2w) 370 | -10/Mines | Discovered new exit (range 4) 374 | -10/Mines | Entered Materials 374 | -9/Materials | Evolved 2 slots: Power x1, Propulsion x1 375 | -9/Materials | Identified exit to Materials 507 | -9/Materials | Discovered new exit (range 16) 627 | -9/Materials | Discovered exit to Materials (range 3) 967 | -9/Materials | Build established: Scavenger-Mutant 1086 | -9/Materials | Discovered exit to Materials (range 16) 1153 | -9/Materials | Entered another Materials area 1153 | -8/Materials | Evolved 2 slots: Utility x2 1195 | -8/Materials | Discovered new exit (range 15) 1470 | -8/Materials | Core integrity fell below 50% 1492 | -8/Materials | Lost 3 parts (2n1w) 1599 | -8/Materials | Core integrity fell below 20% 1643 | -8/Materials | Destroyed by G-47 Trooper with Particle Gun Last Messages --------------- Adv. Targeting Computer destroyed. G-47 Trooper system terminally corrupted. Dropped Carbon-fiber Leg. Acquired Carbon-fiber Leg. G-47 Trooper suffers critical hit (Smash). Destroyed Aluminum Leg. G-47 Trooper system corrupted by crushing effect. G-47 Trooper system terminally corrupted. Lgt. Nuclear Core fried. Imp. Heat Sink fried. Acquired 30 matter. K-01 Serf collects debris. Hammer destroyed. Critical hit (Burn: +37). K-01 Serf collects debris. Med. Armor Plating destroyed. Acquired EM Shotgun. K-01 Serf collects debris. Acquired Great Maul. Map ----- +----------------------------------------------------+ | ???????????????????????##????????????????????????? | | ?????????????????????? ????????????????????????? | | ??????????????????????" ????????????????????????? | | ?????????????????????? ????????????????????????? | | ??????????????????????" ????????????????????????? | | ?????????????????????? !????????????????????????? | | ?????????????????????? ????????????????????????? | | ????????????????????###+###??????????????????????? | | ?????????#+###+##???# #??????????????????????? | | ?????????# ##### ! #######????????????????? | | ?????????# %=